Cogmind - Beta 11.1 @@@ ROGUE MODE // 2022.05.09 @ 23:22:43 Player: Olga Result: Self-destructed Performance ------------- Evolutions (4) 2000 Regions Visited (6) 1200 Robots Destroyed (92) 460 Value Destroyed (2876) 2876 Prototype IDs (3) 60 Alien Tech Used (0) 0 Bonus (-46) -46 TOTAL SCORE: 6550 Bonus ------- High Alert Combat Kills 238 Follower Combat Kills 178 Friendly Fire -462 Cogmind --------- Core Integrity 698/850 Matter 135/300 Energy 19/100 System Corruption 13% Temperature Warm (142) Movement Rolling (215) Ox9 Location -6/Factory Parts ------- > --- POWER (2) -------- (None) > --- PROPULSION (4) --- Advanced Treads Wheel Wheel > --- UTILITY (6) ------ Improved Heat Sink Huge Storage Unit Enhanced Optical Array Advanced Targeting Computer > --- WEAPON (3) ------- Enhanced Autogun Rocket Launcher Improved Grenade Launcher > --- INVENTORY (25) --- Improved Sensor Array Advanced Terrain Scanner Transport Network Coupler Powered Armor Powered Armor Powered Armor Powered Armor Powered Armor Improved Shield Generator Improved Shield Generator System Shield System Shield System Shield Authchip [Power] Authchip [Propulsion] Authchip [Propulsion] Authchip [Device] Authchip [Weapon] Enhanced Autogun Enhanced Autogun Gauss Rifle Gauss Rifle Peak State ------------ > --- POWER ------------ Deuterium Engine Light Angular Momentum Engine > --- PROPULSION ------- Light Treads Light Treads Armored Treads Advanced Treads > --- UTILITY ---------- Huge Storage Unit Enhanced Optical Array Advanced Targeting Computer Hardened Heavy Armor Plating Powered Armor > --- WEAPON ----------- Enhanced Autogun Enhanced Autogun Gauss Rifle > --- INVENTORY -------- Wheel Improved Heat Sink High-capacity Matter Pod Improved Sensor Array Advanced Terrain Scanner Transport Network Coupler Advanced Targeting Computer Powered Armor Powered Armor Powered Armor Powered Armor Improved Shield Generator Improved Shield Generator System Shield System Shield System Shield Authchip [Power] Authchip [Propulsion] Authchip [Propulsion] Authchip [Device] Authchip [Weapon] Enhanced Autogun Gauss Rifle Rocket Launcher Improved Grenade Launcher [Rating: 57] Favorites ----------- Power Deuterium Engine Engine Deuterium Engine Power Core Light Nuclear Core Propulsion Light Treads Treads Light Treads Leg Aluminum Leg Wheel Wheel Utility Huge Storage Unit Device High-powered Tractor Beam Storage Huge Storage Unit Processor Advanced Targeting Computer Protection Hardened Heavy Armor Plating Weapon Gauss Rifle Ballistic Gun Gauss Rifle Ballistic Cannon Improved Light Cannon Launcher Improved Grenade Launcher Build | -11 -10 -9 -8 -8 -8 -6 ------- Run | Scr Mat Mat Mat Sto Rec Fac Slots Evolved 8 | . . 2 2 . . 4 Power 1 | . . . . . . 1 Propulsion 2 | . . 1 1 . . . Utility 4 | . . 1 1 . . 2 Weapon 1 | . . . . . . 1 Parts Attached 108 | . 12 13 30 30 2 21 Power 8 | . 1 1 2 1 . 3 Engine 7 | . 1 1 2 1 . 2 Core 1 | . . . . . . 1 Reactor . | . . . . . . . Propulsion 41 | . 4 7 13 12 2 3 Treads 28 | . 2 3 9 12 2 . Leg . | . . . . . . . Wheel 13 | . 2 4 4 . . 3 Hover . | . . . . . . . Flight . | . . . . . . . Utility 35 | . 5 3 8 11 . 8 Device 13 | . 2 . 5 4 . 2 Storage 3 | . 3 . . . . . Processor 5 | . . . . 3 . 2 Hackware . | . . . . . . . Protection 14 | . . 3 3 4 . 4 Artifact . | . . . . . . . Weapon 24 | . 2 2 7 6 . 7 Energy Gun . | . . . . . . . Energy Cannon . | . . . . . . . Ballistic Gun 11 | . . . 3 5 . 3 Ballistic Cannon 8 | . 2 2 4 . . . Launcher 5 | . . . . 1 . 4 Special Weapon . | . . . . . . . Impact Weapon . | . . . . . . . Slashing Weapon . | . . . . . . . Piercing Weapon . | . . . . . . . Special Melee Weapon . | . . . . . . . Unidentified Prototypes 3 | . . . 1 2 . . Corrupted Parts 1 | . . . . . . 1 System Corruption 2 | . . . . . . 2 Parts Lost 26 | . . 1 6 11 . 8 Power 6 | . . 1 1 1 . 3 Propulsion 14 | . . . 5 6 . 3 Utility 4 | . . . . 2 . 2 Weapon 2 | . . . . 2 . . Highest Loss Streak 4 | . . 1 2 3 . 4 To Critical Strikes . | . . . . . . . Average Slot Usage (%) 91 | . 97 99 96 87 90 89 Engine 9 | . 14 10 8 8 9 7 Treads 27 | . 20 5 27 33 36 21 Wheel 4 | . 7 27 7 . . 3 Device 4 | . 11 2 16 2 . . Storage 9 | . 14 11 9 9 9 6 Processor 5 | . . . . 4 9 12 Protection 9 | . . 19 9 9 9 13 Ballistic Gun 13 | . 9 . 3 17 18 19 Ballistic Cannon 5 | . 18 22 14 . . . Naked Turns . | . . . . . . . Heaviest Build 145 | 11 94 103 119 120 117 145 Greatest Support 82 | 20 40 60 82 82 82 82 Greatest Overweight (x) 13 | . 2 3 5 1 1 13 Average Overweight (x) 1 | . . 2 1 1 1 5 Largest Inventory Capacity 25 | 8 25 25 25 25 25 25 Average Capacity 24 | 8 16 25 25 25 25 25 Most Carried 25 | 6 21 25 25 25 25 25 Average Carried 23 | 6 13 23 23 24 24 24 Final Capacity 25 | 8 25 25 25 25 25 25 Final Carried 25 | 6 21 22 25 25 25 22 Class Distribution -------------------- 37% | Mutant 31% | Commander-Mutant 15% | Tank 15% | Scavenger-Mutant Dominant Class ---------------- Mutant | -10/Materials Mutant | -9/Materials Scavenger-Mutant | -8/Materials Commander-Mutant | -8/Storage Commander-Mutant | -8/Recycling Tank | -6/Factory Resources | -11 -10 -9 -8 -8 -8 -6 ----------- Run | Scr Mat Mat Mat Sto Rec Fac Matter Collected 3503 | 200 271 254 1138 1119 116 405 Remotely 1953 | . 89 85 1132 647 . . Salvage Created 3582 | . 327 359 850 1455 112 479 Parts 192 | . 21 23 49 77 4 18 Haulers Intercepted 9 | . 1 2 3 3 . . Recyclers Shooed 2 | . . . . 2 . . Parts Field Recycled . | . . . . . . . Retrieved Matter . | . . . . . . . Parts Self-Destructed . | . . . . . . . Prevented . | . . . . . . . Kills | -11 -10 -9 -8 -8 -8 -6 ------- Run | Scr Mat Mat Mat Sto Rec Fac Combat Hostiles Destroyed 62 | . 9 9 15 18 1 10 Guns 38 | . 8 . 6 18 1 5 Cannons 19 | . 1 9 9 . . . AOE 5 | . . . . . . 5 Classes Destroyed 15 | . 5 2 7 . 1 . Worker 3 | . . . 1 2 . . Builder 2 | . . . 1 1 . . Tunneler 1 | . . 1 . . . . Hauler 9 | . 1 2 3 3 . . Recycler 9 | . . . 4 4 1 . Operator 2 | . 1 . . 1 . . Drone 1 | . . . . . 1 . Watcher 2 | . 1 . 1 . . . Swarmer 6 | . 3 . 3 . . . Grunt 44 | . 6 7 7 16 1 7 Brawler 1 | . . . 1 . . . Duelist 1 | . . . 1 . . . Sentry 7 | . . 2 1 3 . 1 Hunter 3 | . . . 1 . . 2 Heavy 1 | . . . 1 . . . Best Kill Streak 7 | . 4 4 7 4 1 5 Combat Bots Only 5 | . 4 4 3 4 1 5 Max Kills in Single Turn 3 | . 2 1 2 3 1 2 Gunslinging 1 | . 1 . 1 . . . Exploded 2 | . . . . . . 2 Melee . | . . . . . . . Uniques/NPCs Destroyed . | . . . . . . . Combat | -11 -10 -9 -8 -8 -8 -6 -------- Run | Scr Mat Mat Mat Sto Rec Fac Damage Taken 6774 | . 315 465 1393 2495 81 2025 Core 617 | . 59 58 97 251 . 152 Absorbed by Shields 49 | . . . . 20 14 15 Redirected to Shielding 8 | . . 8 . . . . Regen/Repaired (Parts) 12 | . . . . 2 . 10 Core Remaining (%) 74 | 100 76 85 . . 36 . Volleys Fired 275 | . 34 29 63 110 9 30 Largest 3 | . 2 2 2 2 2 3 Hottest 94 | . 78 78 83 56 56 94 Shots Fired 542 | . 68 58 126 204 18 68 Gun 364 | . 56 . 34 201 18 55 Cannon 162 | . 12 58 92 . . . Launcher 16 | . . . . 3 . 13 Special . | . . . . . . . Kinetic 526 | . 68 58 126 201 18 55 Thermal . | . . . . . . . Explosive 16 | . . . . 3 . 13 Electromagnetic . | . . . . . . . Robot Hit Streak 14 | . 7 13 10 14 12 9 Robot Miss Streak 5 | . 4 3 5 3 5 2 Penetration Max 1 | . . . 1 1 . 1 Secondary Targets 11 | . 4 . 2 4 . 1 Max Gunslinging Chain 1 | . 1 . 1 1 . 1 Shots Hit Robots 350 | . 41 37 84 142 5 41 Core Hits 163 | . 23 14 37 56 3 30 Critical Kills 2 | . . . . 1 . 1 Critical Parts Destroyed 5 | . 1 . . 3 1 . Critical Strikes 17 | . 2 3 6 4 1 1 Destroy 7 | . 1 . . 4 1 1 Blast 10 | . 1 3 6 . . . Melee Attacks . | . . . . . . . Impact . | . . . . . . . Slashing . | . . . . . . . Piercing . | . . . . . . . Sneak Attacks . | . . . . . . . Combat Hostiles . | . . . . . . . Follow-up Attacks . | . . . . . . . Damage Inflicted 8162 | . 506 825 2028 3337 116 1350 Guns 4772 | . 369 . 628 2881 114 780 Cannons 2357 | . 132 825 1400 . . . Explosions 1026 | . . . . 456 . 570 Melee . | . . . . . . . Ramming 7 | . 5 . . . 2 . Kinetic 7129 | . 501 825 2028 2881 114 780 Thermal . | . . . . . . . Explosive 1026 | . . . . 456 . 570 Electromagnetic . | . . . . . . . Impact . | . . . . . . . Slashing . | . . . . . . . Piercing . | . . . . . . . Highest Corruption 13 | . . . . . . 13 Average Corruption 10 | . . . . . . 10 Corruption Purged . | . . . . . . . Corruption Blocked . | . . . . . . . Effects 17 | . . . . . . 17 Message Errors 5 | . . . . . . 5 Matter Fused 3 | . . . . . . 3 Heat Flow Errors 3 | . . . . . . 3 Energy Discharges 2 | . . . . . . 2 Data Loss (minor) 3 | . . . . . . 3 Alerts 1 | . . . . . . 1 Overload Shots . | . . . . . . . Overflow Damage 75 | . . . 25 38 . 12 Projectiles 25 | . . . 25 . . . Explosions 50 | . . . . 38 . 12 Melee . | . . . . . . . Knockbacks 10 | . . 3 7 . . . Impact . | . . . . . . . Kinetic 10 | . . 3 7 . . . Secondary . | . . . . . . . Self-Inflicted Damage 78 | . . . . 78 . . Shots 1 | . . . . 1 . . Rammed 2 | . 1 . . . 1 . Targets Rammed 2 | . 1 . . . 1 . Kicked . | . . . . . . . Crushed . | . . . . . . . Highest Temperature 507 | . 66 455 54 507 36 457 Average Temperature 109 | . 20 135 23 95 13 167 Received Heat Transfer 2531 | . 96 228 324 1404 32 447 Effects 24 | . . 8 . 7 . 9 Shutdowns 8 | . . 1 . 2 . 5 Energy Bleed 1 | . . . . . . 1 Interference 5 | . . 2 . 2 . 1 Matter Decay 2 | . . 1 . 1 . . Short Circuit 2 | . . . . 1 . 1 Damage (minor) 1 | . . . . . . 1 Damage (major) 5 | . . 4 . 1 . . Siege Activations . | . . . . . . . Robots Corrupted . | . . . . . . . Combat Hostiles . | . . . . . . . Parts Fried . | . . . . . . . Impact Corruptions . | . . . . . . . Robots Melted . | . . . . . . . Combat Hostiles . | . . . . . . . Parts Melted . | . . . . . . . Heat Transferred . | . . . . . . . Parts Sabotaged . | . . . . . . . Parts Stolen . | . . . . . . . Parts Stripped . | . . . . . . . Power Chain Reactions . | . . . . . . . Missiles Intercepted . | . . . . . . . Alert | -11 -10 -9 -8 -8 -8 -6 ------- Run | Scr Mat Mat Mat Sto Rec Fac Peak Influence 1108 | . 242 345 304 429 323 1108 Initial 1035 | . . 51 61 115 56 1035 Average 263 | . 106 174 139 209 128 747 Maximum Alert Level 4 | . 1 1 1 2 1 4 Low Security (%) 52 | 100 75 60 80 41 84 . Level 1 30 | . 25 39 19 56 15 7 Level 2 5 | . . . . 1 . 30 Level 3 8 | . . . . . . 52 Level 4 1 | . . . . . . 9 Level 5 . | . . . . . . . High Security . | . . . . . . . Max Security . | . . . . . . . Squads Dispatched 17 | . 3 1 2 5 . 6 Investigation 4 | . . 1 . 2 . 1 Extermination 1 | . . . . . . 1 Reinforcement 10 | . 3 . 2 1 . 4 Assault 2 | . . . . 2 . . Garrison . | . . . . . . . Intercept . | . . . . . . . Searches Triggered 3 | . . . . . . 3 Construction Impeded 1 | . . . . . . 1 Haulers Reinforced . | . . . . . . . Active Scanning Responses . | . . . . . . . Cargo Convoy Interrupts . | . . . . . . . Stealth | -11 -10 -9 -8 -8 -8 -6 --------- Run | Scr Mat Mat Mat Sto Rec Fac Distress Signals 6 | . 1 . 2 2 . 1 Communications Jammed . | . . . . . . . Distress Signals . | . . . . . . . Times Spotted 132 | . 16 11 29 35 23 18 Peak Tracking Total 7 | . 4 6 7 7 4 6 Tactical Retreats 7 | . . . 3 3 . 1 Traps | -11 -10 -9 -8 -8 -8 -6 ------- Run | Scr Mat Mat Mat Sto Rec Fac Traps Triggered 6 | . . 1 . 3 . 2 Indirectly . | . . . . . . . Trap Hack Attempts . | . . . . . . . Triggered . | . . . . . . . Disarmed . | . . . . . . . Reprogrammed . | . . . . . . . Reused . | . . . . . . . Traps Extracted . | . . . . . . . Installed . | . . . . . . . Triggered . | . . . . . . . Machines | -11 -10 -9 -8 -8 -8 -6 ---------- Run | Scr Mat Mat Mat Sto Rec Fac Machines Disabled 14 | . . . 3 2 5 4 Max in Single Turn 1 | . . . 1 1 . 1 Machines Sabotaged . | . . . . . . . Garrisons Compromised . | . . . . . . . Overloaded Fab Kills . | . . . . . . . Hacking | -11 -10 -9 -8 -8 -8 -6 --------- Run | Scr Mat Mat Mat Sto Rec Fac Machines Accessed 28 | . 3 5 5 6 7 2 Terminals 21 | . 1 5 4 6 5 . Fabricators . | . . . . . . . Repair Stations . | . . . . . . . Recycling Units 7 | . 2 . 1 . 2 2 Scanalyzers . | . . . . . . . Garrison Access . | . . . . . . . Total Hacks 78 | . 6 20 11 15 18 8 Successful 43 | . 3 15 8 5 9 3 Failed 35 | . 3 5 3 10 9 5 Catastrophic 4 | . . . 1 2 . 1 Database Lockouts . | . . . . . . . Manual 44 | . 4 15 10 6 9 . Terminals 63 | . 4 20 10 15 14 . Fabricators . | . . . . . . . Repair Stations . | . . . . . . . Recycling Units 15 | . 2 . 1 . 4 8 Scanalyzers . | . . . . . . . Garrison Access . | . . . . . . . Terminal Hacks 18 | . . 8 3 5 2 . Robot Schematic 1 | . . 1 . . . . Robot Analysis 4 | . . 2 2 . . . Open Door 1 | . . . . 1 . . Branch Access Points 2 | . . 1 . 1 . . Terminal Index 2 | . . 1 1 . . . Recycling Unit Index 1 | . . 1 . . . . Alert Level 2 | . . 1 . . 1 . Unreport Threat 3 | . . . . 2 1 . Registered Components 1 | . . 1 . . . . Zone Layout 1 | . . . . 1 . . Fabricator Hacks . | . . . . . . . Repair Station Hacks . | . . . . . . . Recycling Unit Hacks 10 | . 2 . 1 . 4 3 Report Inventory 6 | . 2 . 1 . 2 1 Retrieve Matter 1 | . . . . . . 1 Retrieve Components 3 | . . . . . 2 1 Scanalyzer . | . . . . . . . Garrison Access Hacks . | . . . . . . . Unauthorized Hacks 15 | . 1 7 4 . 3 . Terminals 15 | . 1 7 4 . 3 . Track 1 | . . 1 . . . . Botnet 13 | . 1 5 4 . 3 . Operators 1 | . . 1 . . . . Fabricators . | . . . . . . . Repair Stations . | . . . . . . . Recycling Units . | . . . . . . . Scanalyzers . | . . . . . . . Garrison Access . | . . . . . . . Data Cores Recovered . | . . . . . . . Used . | . . . . . . . Hacking Detections 23 | . 2 5 4 6 5 1 Full Trace Events 3 | . . . . 3 . . Feedback Events . | . . . . . . . Feedback Blocked . | . . . . . . . Robot Schematics Acquired 1 | . . 1 . . . . Robots Built . | . . . . . . . Authchips . | . . . . . . . Time . | . . . . . . . Total Robot Build Rating . | . . . . . . . Part Schematics Acquired . | . . . . . . . Parts Built . | . . . . . . . Authchips . | . . . . . . . Time . | . . . . . . . Total Part Build Rating . | . . . . . . . Parts Repaired . | . . . . . . . Time . | . . . . . . . Parts Recycled . | . . . . . . . Recycled Matter . | . . . . . . . Retrieved Matter . | . . . . . . . Retrieved Components 12 | . . . . . 12 . Parts Scanalyzed . | . . . . . . . Part Schematics Acquired . | . . . . . . . Parts Damaged . | . . . . . . . Bothacking | -11 -10 -9 -8 -8 -8 -6 ------------ Run | Scr Mat Mat Mat Sto Rec Fac Used RIF Installer . | . . . . . . . Robots Hacked . | . . . . . . . Non-combat . | . . . . . . . Combat . | . . . . . . . Robot Hacks Applied . | . . . . . . . Relay Couplers Released . | . . . . . . . Fabnet Peak Effective % . | . . . . . . . Robots Rewired 17 | . . . . . 17 . Allies Hacked . | . . . . . . . Hacks Repelled . | . . . . . . . Allies | -11 -10 -9 -8 -8 -8 -6 -------- Run | Scr Mat Mat Mat Sto Rec Fac Total Allies 29 | . . . . 12 17 . Largest Group 13 | . . . . 10 13 10 Highest-Rated Group 253 | . . . . 173 253 193 Highest-Rated Ally 31 | . . . . 31 31 31 Total Orders . | . . . . . . . Ally Attacks 392 | . . . . 59 311 22 Total Damage 3980 | . . . . 706 2938 336 Kills 76 | . . . . 8 67 1 Allies Corrupted . | . . . . . . . Allies Melted . | . . . . . . . Intel | -11 -10 -9 -8 -8 -8 -6 ------- Run | Scr Mat Mat Mat Sto Rec Fac Robot Analysis Total 4 | . . 2 2 . . . Derelict Logs Recovered . | . . . . . . . Drone Launches . | . . . . . . . Drone Recoveries . | . . . . . . . Exploration | -11 -10 -9 -8 -8 -8 -6 ------------- Run | Scr Mat Mat Mat Sto Rec Fac Turns Passed 6612 | 3 736 413 1090 2144 1089 1137 Spaces Moved 2429 | 3 380 227 388 730 343 358 Core . | . . . . . . . Treads 1812 | . 248 15 287 730 343 189 Legs 7 | 3 4 . . . . . Wheels 610 | . 128 212 101 . . 169 Hover . | . . . . . . . Flight . | . . . . . . . Fastest Speed 105 | 120 120 116 105 236 238 155 Average Speed 214 | 120 156 127 209 239 241 263 Slowest Speed 560 | 120 320 240 560 243 242 392 Overloaded Moves . | . . . . . . . Propulsion Burnouts . | . . . . . . . Robots Hopped . | . . . . . . . Cave-ins Triggered 1 | . . . . . . 1 Exploration Rate (%) 39 | 2 60 24 26 73 83 10 Regions Visited 6 Branch Regions 2 Pre-discovered Areas 1 | . . . . 1 . . Known Exits Taken 1 | . . . . 1 . . Unknown Exits Taken 5 | 1 1 1 1 . 1 . Scrap Searched . | . . . . . . . Spaces Dug . | . . . . . . . Terrain Destroyed 111 | . 2 . 4 37 . 68 Melee . | . . . . . . . Projectile 6 | . 2 . 4 . . . AOE 105 | . . . . 37 . 68 Terrain Rammed . | . . . . . . . Walls Destroyed . | . . . . . . . Machines Disabled . | . . . . . . . Actions | -11 -10 -9 -8 -8 -8 -6 --------- Run | Scr Mat Mat Mat Sto Rec Fac Total 3366 | 2 457 301 559 942 591 514 Wait 153 | . 4 1 4 25 40 79 Move 2422 | 2 379 226 387 729 342 357 Hop . | . . . . . . . Pick Up 105 | . 19 16 36 20 7 7 Fast Attach 22 | . 1 . 7 7 1 6 Attach 30 | . . 3 7 13 . 7 Detach 5 | . . . 1 2 . 2 Swap 56 | . 11 10 16 10 1 8 Drop 100 | . 8 16 38 20 9 9 Fire 275 | . 34 29 63 110 9 30 Melee . | . . . . . . . Ram . | . . . . . . . Kick . | . . . . . . . Crush 2 | . 1 . . . 1 . Escape Stasis 11 | . . . . 2 . 9 Rewire 185 | . . . . 4 181 . Trap . | . . . . . . . Miscellaneous . | . . . . . . . Route ------- -11/Scrapyard -10/Materials (discovered 3 exits: *Mat x2 / [*Min]) -9/Materials (discovered 3 exits: *Mat / Min x2) -8/Materials -8/Storage -8/Recycling -6/Factory History --------- Turn | Location | Event 1 | -11/Scrapyard | Discovered new exit (range 3) 4 | -11/Scrapyard | Entered Materials 101 | -10/Materials | Discovered new exit (range 16) 265 | -10/Materials | Discovered new exit (range 11) 323 | -10/Materials | Build established: Mutant 631 | -10/Materials | Discovered new exit (range 16) 740 | -10/Materials | Entered another Materials area 740 | -9/Materials | Evolved 2 slots: Propulsion x1, Utility x1 1031 | -9/Materials | Identified exit to Mines 1062 | -9/Materials | Discovered new exit (range 15) 1153 | -9/Materials | Entered another Materials area 1153 | -8/Materials | Evolved 2 slots: Propulsion x1, Utility x1 1445 | -8/Materials | Build established: Scavenger-Mutant 2183 | -8/Materials | Build established: Mutant 2221 | -8/Materials | Discovered new exit (range 8) 2243 | -8/Materials | Entered Storage 2427 | -8/Storage | Lost 3 parts (2n1u) 2618 | -8/Storage | Core integrity fell below 50% 2805 | -8/Storage | Lost 3 parts (1p1n1w) 2957 | -8/Storage | Lost 3 parts (1n1u1w) 3129 | -8/Storage | Assisted by bots powering up and referring to "LRC-V3" 3137 | -8/Storage | Identified exit to Recycling 3228 | -8/Storage | Found Prototype Protection 3228 | -8/Storage | Identified Lgt. Regenerative Plating 3239 | -8/Storage | Found Lgt. Regenerative Plating 3242 | -8/Storage | Found Lgt. Regenerative Plating 3413 | -8/Storage | Build established: Commander-Mutant 4241 | -8/Storage | Learned location of Armory (-3) 4323 | -8/Storage | Met a pair of Derelict thieves 4376 | -8/Storage | Used back door to open Recycling access 4387 | -8/Storage | Entered Recycling 4387 | -8/Recycling | Accompanied by 7 allies 4396 | -8/Recycling | Spotter reported a threat 4428 | -8/Recycling | Spotter reported a threat 4431 | -8/Recycling | Spotter reported a threat 4435 | -8/Recycling | Spotter reported a threat 4447 | -8/Recycling | Spotter reported a threat 4449 | -8/Recycling | Spotter reported a threat 4463 | -8/Recycling | Spotter reported a threat 4483 | -8/Recycling | Spotter reported a threat 4484 | -8/Recycling | Spotter reported a threat 4500 | -8/Recycling | Spotter reported a threat 4502 | -8/Recycling | Spotter reported a threat 4508 | -8/Recycling | Spotter reported a threat 4537 | -8/Recycling | Spotter reported a threat 4568 | -8/Recycling | Spotter reported a threat 4568 | -8/Recycling | Spotter reported a threat 4603 | -8/Recycling | Spotter reported a threat 4621 | -8/Recycling | Spotter reported a threat 4621 | -8/Recycling | Spotter reported a threat 4645 | -8/Recycling | Spotter reported a threat 4645 | -8/Recycling | Spotter reported a threat 4687 | -8/Recycling | Spotter reported a threat 4719 | -8/Recycling | Spotter reported a threat 4723 | -8/Recycling | Spotter reported a threat 4723 | -8/Recycling | Spotter reported a threat 4783 | -8/Recycling | Spotter reported a threat 4784 | -8/Recycling | Spotter reported a threat 4816 | -8/Recycling | Spotter reported a threat 4825 | -8/Recycling | Spotter reported a threat 4870 | -8/Recycling | Spotter reported a threat 4878 | -8/Recycling | Spotter reported a threat 4896 | -8/Recycling | Spotter reported a threat 4923 | -8/Recycling | Spotter reported a threat 4952 | -8/Recycling | Spotter reported a threat 4976 | -8/Recycling | Spotter reported a threat 4995 | -8/Recycling | Spotter reported a threat 5021 | -8/Recycling | Spotter reported a threat 5021 | -8/Recycling | Spotter reported a threat 5048 | -8/Recycling | Spotter reported a threat 5077 | -8/Recycling | Spotter reported a threat 5077 | -8/Recycling | Spotter reported a threat 5129 | -8/Recycling | Spotter reported a threat 5147 | -8/Recycling | Spotter reported a threat 5153 | -8/Recycling | Spotter reported a threat 5169 | -8/Recycling | Spotter reported a threat 5170 | -8/Recycling | Spotter reported a threat 5220 | -8/Recycling | Spotter reported a threat 5220 | -8/Recycling | Spotter reported a threat 5221 | -8/Recycling | Spotter reported a threat 5265 | -8/Recycling | Spotter reported a threat 5265 | -8/Recycling | Spotter reported a threat 5273 | -8/Recycling | Spotter reported a threat 5316 | -8/Recycling | Spotter reported a threat 5316 | -8/Recycling | Spotter reported a threat 5316 | -8/Recycling | Spotter reported a threat 5356 | -8/Recycling | Spotter reported a threat 5356 | -8/Recycling | Spotter reported a threat 5356 | -8/Recycling | Spotter reported a threat 5356 | -8/Recycling | Spotter reported a threat 5359 | -8/Recycling | Discovered new exit (range 14) 5407 | -8/Recycling | Spotter reported a threat 5407 | -8/Recycling | Spotter reported a threat 5458 | -8/Recycling | Spotter reported a threat 5476 | -8/Recycling | Entered Factory 5476 | -6/Factory | Accompanied by 10 allies 5476 | -6/Factory | Evolved 4 slots: Power x1, Utility x2, Weapon x1 5542 | -6/Factory | Found Powered Armor 5548 | -6/Factory | Found Powered Armor 5588 | -6/Factory | Found Powered Armor 5591 | -6/Factory | Found Powered Armor 5594 | -6/Factory | Found Powered Armor 5667 | -6/Factory | Found Powered Armor 5678 | -6/Factory | Spotted B-75 Beast 5826 | -6/Factory | Search patrols dispatched 6028 | -6/Factory | Build established: Tank 6158 | -6/Factory | Crushed by falling debris 6176 | -6/Factory | Search patrols dispatched 6442 | -6/Factory | Lost 4 parts (3p1n) 6464 | -6/Factory | System corruption reached 10% 6526 | -6/Factory | Search patrols dispatched 6613 | -6/Factory | Self-destructed Last Messages --------------- 06599_ G-50 Soldier suffers critical hit (Destroy). 06599_ G-50 Soldier destroyed. 06599_ Switching to secondary target: G-50 Soldier. 06599_ U-05 Engineer builds a Wall. 06601_ Dropped Hcp. Matter Pod. 06602_ Extracted 200 matter. 06602_ K-01 Serf collects debris. 06603_ U-05 Engineer builds a Wall. 06606_ Overheating: Energy bleed (-9). 06608_ U-05 Engineer builds a Wall. 06608_ Hrd. Heavy Armor Plating destroyed. 06610_ G-50 Soldier destroyed. 06610_ ALERT: Construction progress impeded, dispatching reinforcements to local area. 06611_ H-61 Shepherd calls for reinforcements. 06611_ ALERT: Hostile activity reported, dispatching reinforcements to area. 06611_ Wheel destroyed. 06612_ U-05 Engineer lays Concrete. 06613_ The unstable cave ceiling collapses. Map ----- +----------------------------------------------------+ | | | | | | | | | | | | | ??????????????????????# # # ### ## # #????????? | | ??????????????????????# # ##???????? | | ?????????????????????## # ???###### | | ?????????????????????# # ##??# | | ?????????????????????# # #??#""" % | | ?????????????????????# ####"Y | | ??????????????????????# # ##""" | | ??????????????????????## ## ## | | ??????????????????????# # ## ## | | ??????????????????????### ## ## | | ??????????????????????# ## ## | | ??????????????????????### ! ### ## | | ######################## ######+######### # | | # u ! / | | # ^ ##### ###### | | # ##??## ##????? | | # #???# ????? | | # ^ H u #???# ???? | | # ^ l %g= #???##### ?? | | # @ =!%= #?? ? | | # ############+########*# # #??? " | | # #????# # #????????????????? | | # #????# # #?????????????????? | | # #????# # #?????????????????? | | # #????# # #?????????????????? | | # #????# # #?????????????????? | | + #????# # #?????????????????? | | # #????################ #?????????????????? | | # #???????????????????# #?????????????????? | | # #???????????????????# #?????????????????? | | # #???????????????????# ###### #????? | | #???????????????????# #????? | | #???????????????????# | | #???????????????????+ | | #???????????????????# | | +???????????????????# ! ###### | | #???????????????????## ##### #????? | | """ #????????????????????? #?????##+####????? | | | """ #????????????????????? #????????????????? | | " #????????????????????? #????????????????? | | "F" ###????????????????????? #????????????????? | | """ #??????????????????????? #????????????????? | | #??????????????????????? #????????????????? | | #??????????????????????? #????????????????? | +----------------------------------------------------+ Best States ------------- Heat Dissipation 59 Energy Generation 27 Energy Capacity 465 Matter Stores 300 Matter Capacity 300 Sight Range 22 Terrain Scan Density 10 Armor Coverage 1400 Resistance: TH 10 Propulsion Shielding 33 Evasion (%) 55 Targeting Accuracy 8 Recoil Reduction 4 Authchip Count 5 Item Schematics ----------------- None Robot Schematics ------------------ S-10 Pest | -9/Materials | Hacked Fabricated ------------ Nothing Alien Tech Used ----------------- None Achievements -------------- None Challenges ------------ None Game ------ Seed ThermoelectricFireRailgun Manual? 0 Play Time 01:15:24 Cumulative 236.2 hours Start 2022.05.09 @ 21:22:59 End 2022.05.09 @ 23:22:43 Sessions 1 Manual Loads 0 Difficulty Rogue Special Mode None Game No. 330 Rogue 327 Adventurer 0 Explorer 3 Win Type - Total 8 Types 8/0/0/0/0/0/0/0/0 Lore% 69 Gallery% 74 Achievement% 61 Wizard Run 0 Options --------- ASCII 1 Keyboard 0 Movement Vi Keybinds 0 Fullscreen 1 Font 18/SmallcapsGlow Map View 76x50 Tactical HUD 1 Map Filters NONE Filters NONE Steam 1 RUN: bc555465-1d9f-4454-bd2c-488988df0cbf